bitfinex/quotes_ETHUSD_20240703
["timestamp","ask_amount","ask_price","bid_price","bid_amount"]
[1720011628448,0.98832328,3294.1,3294.0,0.55]
[1720011628970,0.98832328,3294.1,3293.8,0.55]
[1720011629735,0.98832328,3294.1,3293.7,0.55]
[1720011632540,0.94768,3293.9,3293.7,0.55]
[1720011632764,0.98832328,3293.6,3293.4,7.47]
[1720011633178,0.03165091,3293.5,3293.4,7.47]
[1720011633381,0.03165091,3293.5,3292.8,5.59288]
[1720011633553,0.03165091,3293.5,3292.9,2.077225]
[1720011633752,0.98832328,3293.4,3292.9,3.904225]
[1720011633952,0.98832328,3293.4,3292.9,1.827]
[1720011634271,0.98832328,3293.0,3292.7,7.47]
[1720011634461,0.98832328,3293.0,3292.4,5.59323]
[1720011634662,0.98832328,3293.0,3292.5,1.827]
[1720011634863,0.98832328,3293.0,3292.5,3.370998]
[1720011635064,0.94768,3293.4,3292.5,3.370998]
[1720011635352,1.01110773,3293.4,3292.5,3.370998]
[1720011635566,1.01110773,3293.4,3292.5,6.408178]
[1720011635853,0.98832328,3293.2,3292.6,2.377]
[1720011636176,0.98832328,3293.0,3292.6,2.377]
[1720011636381,0.94768,3292.9,3292.3,0.28669333]
[1720011636565,0.98832328,3292.8,3292.3,4.25836933]
[1720011636926,0.98832328,3292.6,3292.2,11.853]
[1720011637094,0.94768,3292.9,3292.2,11.853]
[1720011638704,0.94768,3292.6,3292.3,0.55]
[1720011638902,0.94768,3292.4,3291.8,9.297]
[1720011639049,0.98832328,3292.3,3291.6,4.86503]
[1720011639253,0.98832328,3292.3,3291.8,1.827]
[1720011639493,0.98832328,3292.0,3291.8,1.827]
[1720011639990,1.93600328,3292.4,3291.8,1.827]
[1720011640758,1.93600328,3292.4,3291.9,0.55]
[1720011641089,1.93600328,3292.2,3291.6,1.827]
[1720011641395,1.93600328,3292.2,3291.6,3.316112]
[1720011642649,1.93600328,3292.2,3291.7,0.55]
[1720011643794,0.98832328,3292.0,3291.7,0.55]
[1720011643966,0.94768,3292.2,3291.7,0.55]
[1720011644168,1.93600328,3292.2,3291.7,0.55]
[1720011646294,0.06342773,3293.0,3291.9,4.383]
[1720011646295,0.98832328,3292.6,3291.9,4.383]
[1720011646565,0.98832328,3292.6,3292.0,0.61074348]
[1720011646773,0.03020895,3292.5,3292.1,4.86449]
[1720011647107,0.98832328,3292.8,3292.2,2.43774008]
[1720011647258,0.03020895,3292.7,3292.3,0.30451257]
[1720011647452,0.98832328,3292.8,3292.4,0.55]
[1720011647675,0.03020895,3292.7,3292.4,0.55]
[1720011647988,0.98832328,3292.8,3292.4,0.55]
[1720011648298,0.98832328,3292.6,3292.4,0.55]
[1720011648599,0.03020895,3292.5,3292.4,0.55]
[1720011648805,0.03020895,3292.5,3292.0,1.827]
[1720011648806,0.98832328,3292.2,3292.1,0.55]
[1720011649167,1.93600328,3292.2,3291.6,1.489112]
[1720011649381,0.98832328,3292.2,3291.6,5.872112]
[1720011649700,0.98832328,3292.2,3291.7,6.0558972]
[1720011649903,0.98832328,3292.2,3291.7,1.827]
[1720011650206,1.93600328,3292.2,3291.7,1.827]
[1720011650699,1.93600328,3292.2,3291.8,0.55]
[1720011651680,0.98832328,3292.0,3291.8,0.55]
[1720011653309,0.94768,3292.5,3291.9,1.827]
[1720011653604,0.94768,3292.5,3292.0,0.55]
[1720011654414,0.98832328,3292.4,3292.0,0.55]
[1720011654710,0.98832328,3292.2,3292.0,0.55]
[1720011654916,0.98832328,3292.4,3292.0,0.55]
[1720011656306,0.98832328,3292.2,3292.0,0.55]
[1720011656606,0.94768,3292.5,3292.0,0.55]
[1720011656909,0.98832328,3292.4,3292.0,0.55]
[1720011657585,0.98832328,3292.4,3292.0,0.6107454]
[1720011657784,0.98832328,3292.8,3292.1,4.86448]
[1720011657997,0.98832328,3292.8,3292.2,3.6482201]
[1720011658297,0.98832328,3292.8,3292.3,0.06074029]
[1720011658298,0.94768,3292.7,3292.3,0.06074029]
[1720011658512,0.94768,3292.7,3292.4,0.55]
[1720011660181,0.94768,3292.9,3292.4,0.55]
[1720011660373,1.93600328,3293.2,3292.5,4.92491774]
[1720011660679,0.98832328,3293.0,3292.6,0.55]
[1720011660886,0.98832328,3292.7,3292.6,0.55]
[1720011661282,1.93600328,3293.0,3292.6,0.55]
[1720011661487,0.98832328,3292.2,3292.1,7.47]
[1720011661799,0.48428,3293.5,3291.7,5.5939]
[1720011661800,0.98832328,3292.1,3291.7,5.5939]
[1720011662019,0.98832328,3292.1,3291.7,3.0379]
[1720011662173,1.05175101,3292.4,3291.8,0.99138]
[1720011662374,1.05175101,3292.4,3291.6,8.7029]
[1720011662375,0.98832328,3292.0,3291.6,8.7029]
[1720011662574,0.94768,3291.8,3291.2,7.47]
[1720011662816,0.98832328,3291.6,3291.1,3.03842]
[1720011663114,0.98832328,3291.6,3291.0,3.03858]
[1720011663277,0.98832328,3291.6,3290.9,1.827]
[1720011663634,1.01110773,3291.5,3290.9,1.827]
[1720011663790,1.93600328,3291.5,3290.9,1.827]
[1720011664117,0.94768,3291.5,3290.9,1.827]
[1720011664275,0.02842567,3291.4,3290.9,4.003767]
[1720011664606,0.94768,3291.5,3290.9,4.003767]
[1720011665711,0.98832328,3291.4,3290.9,4.003767]
[1720011666088,0.98832328,3291.4,3290.9,1.827]
[1720011666626,0.98832328,3291.4,3290.8,7.47]
[1720011666627,1.93600328,3291.2,3290.8,7.47]
[1720011666985,0.98832328,3291.0,3290.8,7.47]
[1720011667184,0.98832328,3291.0,3290.7,2.556]
[1720011667433,0.98832328,3291.0,3290.4,1.827]
[1720011667724,0.98832328,3291.0,3290.5,0.31113542]
[1720011667924,0.98832328,3291.0,3290.4,1.827]
[1720011668289,1.93600328,3291.2,3290.4,1.827]
[1720011668495,0.06342773,3291.1,3290.4,4.86613]
[1720011668690,0.06342773,3291.1,3290.5,0.55]
[1720011669119,0.98832328,3291.0,3290.5,0.55]
[1720011669327,0.98832328,3290.6,3290.5,0.55]
[1720011669593,0.94768,3290.5,3289.8,5.59568]
[1720011669828,0.94768,3290.5,3289.9,0.06078282]
[1720011670339,0.98832328,3290.4,3289.9,0.06078282]
[1720011670496,0.98832328,3290.4,3289.8,1.827]
[1720011671015,0.98832328,3290.4,3289.9,0.55]
[1720011671615,0.94768,3290.2,3289.7,10.026]
[1720011672139,1.93600328,3290.2,3289.7,10.026]
[1720011672288,0.94768,3289.9,3289.7,2.556]
[1720011672487,0.94768,3289.9,3289.2,2.556]
[1720011672718,0.94768,3289.9,3289.3,1.827]
[1720011672943,0.02798005,3289.8,3289.3,1.827]
[1720011673512,0.94768,3289.7,3289.2,2.556]
[1720011674231,0.94768,3289.7,3289.0,7.47]
[1720011674431,1.01110773,3289.7,3289.0,7.47]
[1720011674673,0.94768,3289.5,3288.8,4.86754]
[1720011674856,0.94768,3289.5,3288.8,4.383]
[1720011675242,0.94768,3289.5,3288.8,4.67147574]
[1720011675442,0.98832328,3289.4,3288.8,4.67147574]
[1720011675642,0.94768,3289.2,3288.8,2.556]
[1720011675828,0.94768,3289.5,3288.9,0.06080691]
[1720011676030,0.02679278,3289.1,3289.0,4.86743]
[1720011676236,0.94768,3290.5,3289.7,4.86672]
[1720011676430,0.98832328,3290.8,3290.2,2.556]
[1720011676670,0.02679278,3290.4,3290.3,0.06078015]
[1720011676881,0.94768,3290.9,3290.4,3.03913]
[1720011677172,0.02679278,3290.8,3290.5,0.61077419]
[1720011677334,0.98832328,3291.1,3290.6,3.03893]
[1720011677537,0.94768,3291.4,3290.8,4.383]
[1720011677740,0.02710115,3291.3,3290.9,3.6494455]
[1720011678139,0.94768,3291.9,3291.3,3.03824]
[1720011678336,0.02730109,3291.8,3291.4,1.88775619]
[1720011678572,0.94768,3292.7,3292.0,3.03764]
[1720011678775,0.94768,3292.7,3292.1,0.61074415]
[1720011678934,0.02691773,3292.6,3292.1,0.61074415]
[1720011679130,0.94768,3292.7,3292.1,0.61074415]
[1720011679131,0.94768,3292.7,3292.2,0.06074443]
[1720011679366,0.94768,3292.7,3292.3,0.55]
[1720011679544,0.02741349,3292.6,3292.3,0.55]
[1720011679871,0.02741349,3292.6,3292.3,3.64810149]
[1720011680250,5.75488,3293.2,3292.4,4.8642]
[1720011680573,0.94768,3293.0,3292.5,0.55]
[1720011680733,0.94768,3293.0,3292.5,0.61073783]
[1720011680935,0.02728908,3292.9,3292.5,0.61073783]
[1720011681274,0.94768,3292.5,3291.9,6.03775]
[1720011681436,0.94768,3292.5,3292.0,3.55]
[1720011681772,0.94768,3292.5,3292.0,0.55]
[1720011681773,0.98832328,3292.4,3292.0,0.55]
[1720011681980,0.94768,3292.3,3291.8,0.55]
[1720011682192,0.98832328,3292.2,3291.7,0.55]
[1720011682363,0.19632924,3292.9,3291.6,9.297]
[1720011682364,0.98832328,3292.0,3291.6,9.297]
[1720011682562,0.98832328,3292.2,3291.6,4.86501]
[1720011682765,0.98832328,3292.2,3291.7,3.09866249]
[1720011682968,0.94768,3292.3,3291.8,0.06075075]
[1720011683313,1.93600328,3292.5,3291.9,3.03775]
[1720011683450,0.98832328,3292.4,3292.0,0.06074724]
[1720011683789,0.98832328,3292.2,3292.1,0.55]
[1720011683990,0.98832328,3292.2,3291.9,0.55]
[1720011684197,1.01546652,3292.2,3291.8,0.55]
[1720011684392,0.98832328,3292.0,3291.8,0.55]
[1720011684558,0.98832328,3291.8,3291.5,0.55]
[1720011684758,4.6952,3292.4,3291.2,13.91633]
[1720011684759,0.94768,3291.7,3291.2,7.47]
[1720011684963,1.93600328,3291.4,3290.7,7.47]
[1720011685155,1.93600328,3291.4,3290.5,3.03902]
[1720011685156,0.06342773,3291.3,3290.5,3.03902]
[1720011685491,0.98832328,3291.2,3290.5,3.03902]
[1720011686054,0.94768,3291.0,3290.3,9.297]
[1720011686257,0.94768,3290.5,3289.8,7.47]
[1720011686458,0.94768,3290.5,3289.7,3.03972]
[1720011686754,0.94768,3290.5,3289.7,3.03976]
[1720011686986,0.94768,3290.5,3289.9,3.03952]
[1720011687184,0.94768,3290.5,3289.9,4.86652]
[1720011687393,0.94768,3290.7,3290.2,4.8663]
[1720011687606,0.94768,3290.7,3290.3,0.060777]
[1720011687958,1.93600328,3290.9,3290.3,0.060777]
[1720011688157,0.94768,3290.9,3290.4,0.55]
[1720011688691,0.94768,3291.2,3290.5,0.06077683]
[1720011689018,1.93600328,3291.2,3290.6,3.58889]
[1720011689302,1.93600328,3291.2,3290.6,0.55]
[1720011689494,2.13594638,3291.2,3290.6,0.55]
[1720011689698,2.13594638,3291.2,3290.4,3.58912]
[1720011690010,0.98832328,3290.9,3290.4,3.58912]
[1720011690373,0.98832328,3291.1,3290.5,4.86605]
[1720011690582,0.98832328,3291.1,3290.6,0.55]
[1720011691211,0.94768,3290.9,3290.6,0.55]
[1720011691416,1.93600328,3290.9,3290.4,0.55]
[1720011691704,0.98832328,3290.9,3290.4,0.55]
[1720011692003,0.98832328,3290.9,3290.5,0.06077538]
[1720011692172,0.98832328,3290.9,3290.4,2.377]
[1720011692173,0.98832328,3290.9,3290.6,0.55]
[1720011692376,1.93600328,3291.1,3290.6,0.55]
[1720011692584,1.93600328,3291.7,3290.8,1.827]
[1720011692767,1.93600328,3291.7,3291.1,4.86548]
[1720011692969,1.93600328,3291.7,3291.2,0.06076011]
[1720011693316,1.93600328,3291.7,3291.3,0.55]
[1720011693483,0.94768,3291.7,3291.3,0.55]
[1720011693689,1.93600328,3291.7,3291.3,0.55]
[1720011694071,0.98832328,3291.5,3291.2,0.55]
[1720011694326,0.94768,3291.7,3291.2,0.55]
[1720011694615,0.94768,3291.7,3291.3,0.06076013]
[1720011694933,1.93600328,3292.3,3291.7,4.86493]
[1720011695068,1.93600328,3292.3,3291.8,0.06074831]
[1720011695069,0.94768,3292.3,3291.8,0.06074831]
[1720011695273,0.94768,3292.3,3291.9,0.55]
[1720011695716,0.94768,3292.7,3291.9,0.55]
[1720011695885,0.94768,3292.7,3292.1,3.03754]
[1720011696206,0.94768,3292.7,3292.2,0.55]
[1720011696415,1.93600328,3292.7,3292.2,0.55]
[1720011696594,0.94768,3292.7,3292.2,0.55]
[1720011697002,1.93600328,3292.7,3292.2,0.55]
[1720011698698,0.94768,3292.7,3292.2,0.55]
[1720011700341,1.05175101,3292.9,3292.2,0.55]
[1720011700342,0.98832328,3292.9,3292.3,4.92505369]
[1720011700628,0.98832328,3292.9,3292.4,0.55]
[1720011700940,0.98832328,3292.9,3292.5,0.06073725]
[1720011701145,0.98832328,3292.9,3292.6,0.55]
[1720011701698,0.98832328,3292.7,3292.6,0.55]
[1720011702123,0.98832328,3292.7,3292.5,0.55]
[1720011702529,0.98832328,3292.7,3292.4,0.55]
[1720011703103,0.98832328,3293.3,3292.7,3.03696]
[1720011703435,0.98832328,3293.1,3292.8,0.55]
[1720011703798,0.98832328,3293.1,3292.7,0.61073299]
[1720011703998,0.98832328,3293.1,3292.7,1.27923329]
[1720011705438,0.94768,3293.4,3292.9,3.408]
[1720011705742,0.98832328,3293.3,3293.0,0.61072822]
[1720011706448,1.01110773,3293.2,3293.0,0.55]
[1720011706605,0.98832328,3293.1,3293.0,0.55]
[1720011708120,1.01600396,3293.1,3293.0,0.55]
[1720011708316,0.94768,3292.9,3292.4,0.57791484]
[1720011708522,0.94768,3292.9,3292.2,6.40230837]
[1720011708707,4.9686,3293.3,3292.1,7.47]
[1720011708708,0.94768,3292.3,3292.1,7.47]
[1720011708908,0.94768,3292.1,3291.2,13.91634]
[1720011709159,1.93600328,3291.9,3291.2,3.408]
[1720011709324,0.02766401,3291.8,3291.2,4.21055]
[1720011709512,0.02766401,3291.8,3291.2,7.24894]
[1720011709944,0.02766401,3291.8,3291.2,4.21055]
[1720011710250,1.93600328,3291.9,3291.2,4.21055]
[1720011710921,0.94768,3291.5,3290.8,7.47]
[1720011711126,1.93600328,3291.5,3290.8,7.47]
[1720011711324,0.98832328,3291.3,3290.8,7.47]
[1720011711531,0.98832328,3291.3,3290.6,3.408]
[1720011711731,0.98832328,3291.3,3290.7,1.112937]
[1720011712044,0.98832328,3291.3,3290.6,3.408]
[1720011712045,0.94768,3291.1,3290.6,3.408]
[1720011712248,0.94768,3290.7,3290.1,3.408]
[1720011712912,0.94768,3290.7,3290.2,0.06077871]
[1720011713116,0.98832328,3290.9,3290.2,0.06077871]
[1720011713117,1.93600328,3290.9,3290.2,0.06077871]
[1720011713339,1.93600328,3290.9,3290.3,2.66051287]
[1720011713552,1.93600328,3290.9,3290.4,0.06077482]
[1720011713553,0.02739321,3290.8,3290.4,0.06077482]
[1720011713873,0.94768,3290.9,3290.4,0.06077482]
[1720011713874,1.93600328,3290.9,3290.4,0.06077482]
[1720011714029,0.98832328,3290.7,3290.5,0.55]
[1720011714227,1.93600328,3291.1,3290.5,0.87712877]
[1720011714435,0.94768,3290.9,3290.5,0.87712877]
[1720011714633,1.93600328,3290.9,3290.5,0.87712877]
[1720011714935,1.93600328,3290.9,3290.1,3.408]
[1720011714936,0.94768,3290.7,3290.1,3.408]
[1720011715233,0.94768,3290.7,3288.9,3.04049]
[1720011715234,1.93600328,3290.2,3289.6,3.408]
[1720011715450,1.93600328,3290.2,3289.5,7.47]
[1720011715655,1.93600328,3290.2,3289.6,2.208377]
[1720011715865,0.98832328,3290.0,3289.6,2.208377]
[1720011716067,0.06342773,3289.9,3289.3,1.827]
[1720011716266,0.98832328,3289.7,3289.3,1.827]
[1720011716425,0.94768,3290.0,3289.3,1.827]
[1720011716954,0.98832328,3289.9,3289.3,1.827]
[1720011717155,0.94768,3290.0,3289.4,1.233725]
[1720011717656,0.94768,3290.0,3289.3,1.827]
[1720011718667,0.94768,3290.0,3289.4,0.55]
[1720011718966,0.98832328,3289.7,3289.4,0.55]
[1720011719335,0.98832328,3289.7,3289.2,7.47]
[1720011719336,0.94768,3289.6,3289.2,7.47]
[1720011719834,0.98832328,3289.5,3289.2,7.47]
[1720011720172,0.98832328,3289.5,3289.0,1.827]
[1720011720333,0.98832328,3289.5,3288.9,4.86752]
[1720011720667,0.98832328,3289.5,3289.0,1.340808]
[1720011721877,0.94768,3289.6,3289.0,3.167808]
[1720011722180,0.94768,3289.8,3289.1,4.92813146]
[1720011722342,0.94768,3289.8,3289.2,0.55]
[1720011723039,0.94768,3290.0,3289.3,0.06079739]
[1720011723288,0.94768,3290.4,3289.7,4.86676]
[1720011723515,0.94768,3290.4,3289.8,0.61078477]
[1720011724010,0.94768,3290.0,3289.8,0.55]
[1720011724173,0.94768,3290.0,3289.6,0.55]
[1720011724368,0.94768,3290.0,3289.6,0.2377]
[1720011724605,0.94768,3290.0,3289.7,0.55]
[1720011725003,0.94768,3290.4,3289.8,0.06079204]
[1720011725316,0.94768,3290.6,3290.0,4.86646]
[1720011725473,0.94768,3290.6,3290.1,0.61078071]
[1720011725675,0.98832328,3290.5,3290.1,0.55]
[1720011725929,0.94768,3290.6,3290.1,0.55]
[1720011726213,0.98832328,3290.4,3290.1,0.55]
[1720011726708,0.94768,3290.1,3289.6,0.2377]
[1720011726877,0.94768,3290.1,3289.6,3.0]
[1720011727077,0.98832328,3289.7,3289.3,7.47]
[1720011727428,0.94768,3290.1,3289.2,3.66711395]
[1720011727715,0.94768,3289.7,3289.1,4.8673]
[1720011728020,0.94768,3289.7,3289.2,3.10104703]
[1720011728220,0.94768,3289.7,3289.2,3.04025]
[1720011728386,1.93600328,3289.7,3289.1,1.827]
[1720011728608,1.93600328,3289.7,3289.1,7.86733]
[1720011728609,0.98832328,3289.5,3289.1,7.86733]
[1720011728804,1.93600328,3289.7,3289.0,1.827]
[1720011729003,0.98832328,3289.3,3289.0,1.827]
[1720011729224,0.94768,3289.5,3289.0,1.827]
[1720011729406,4.835,3291.3,3289.3,1.827]
[1720011729617,4.91715609,3291.8,3290.5,3.03899]
[1720011729825,0.01556167,3291.7,3290.5,3.03904]
[1720011730389,0.01556167,3291.7,3290.6,0.55]
[1720011730690,0.01556167,3291.7,3290.7,0.358904]
[1720011731145,0.01556167,3291.7,3290.2,5.235]
[1720011731441,0.01556167,3291.7,3290.2,1.827]
[1720011731606,0.01556167,3291.7,3290.3,0.55]
[1720011732103,4.7687,3291.6,3289.9,3.03952]
[1720011732444,0.01556167,3291.5,3290.2,0.55]
[1720011732741,0.49243167,3291.5,3290.0,0.55]
[1720011733260,0.49243167,3291.5,3289.5,3.03989]
[1720011733261,3.0,3291.4,3289.5,3.03989]
[1720011733548,3.0,3291.4,3289.6,3.10066311]
[1720011733549,7.71336167,3291.3,3289.6,3.10066311]
[1720011733849,0.01556167,3291.2,3289.7,3.03975]
[1720011734046,0.77133617,3291.1,3289.2,3.408]
[1720011734364,4.70686167,3291.0,3289.3,4.86714]
[1720011734559,4.70686167,3291.0,3289.2,3.408]
[1720011734855,4.70686167,3291.0,3289.2,3.8084532]
[1720011734856,4.7727,3290.8,3289.2,3.8084532]
[1720011735006,0.01556167,3290.7,3289.2,0.7682032]
[1720011735201,0.01556167,3290.7,3288.9,3.04049]
[1720011735202,0.01556167,3290.7,3288.9,4.86749]
[1720011735404,0.01556167,3290.7,3288.9,7.90794]
[1720011735729,0.01556167,3290.7,3289.0,3.04043]
[1720011736142,4.8864,3290.6,3288.9,1.827]
[1720011736308,4.8864,3290.6,3288.8,7.47]
[1720011736309,4.8864,3290.4,3288.8,7.47]
[1720011736512,0.01556167,3290.3,3288.8,7.47]
[1720011736810,3.01556167,3290.3,3288.8,7.47]
[1720011737015,0.01556167,3290.2,3288.8,7.47]
[1720011737267,0.30155617,3290.1,3288.9,1.051071]
[1720011737424,0.01556167,3290.0,3288.9,1.051071]
[1720011737844,0.01556167,3290.0,3288.7,3.10151801]
[1720011738229,0.01556167,3290.0,3288.8,0.55]
[1720011739466,0.01556167,3290.0,3288.7,0.55]
[1720011739665,0.01556167,3290.0,3288.6,0.55]
[1720011739978,0.01556167,3290.0,3288.6,3.59078]
[1720011740147,0.01556167,3290.0,3288.7,0.845858]
[1720011740491,0.01556167,3290.0,3288.8,0.55]
[1720011741167,0.01556167,3290.0,3288.8,0.61080796]
[1720011741375,0.01556167,3290.0,3288.8,2.43780796]
[1720011741589,0.01556167,3290.3,3289.2,3.408]
[1720011741764,0.01556167,3290.3,3289.3,1.194833]
[1720011741963,0.01556167,3290.3,3289.3,1.25563131]
[1720011742287,0.01556167,3290.3,3289.4,3.04004]
[1720011742481,0.01556167,3290.3,3289.5,0.61079258]
[1720011742650,0.01556167,3290.3,3289.6,0.36508326]
[1720011742852,0.01556167,3290.3,3289.7,0.55]
[1720011743913,0.01556167,3290.3,3289.3,0.644833]
[1720011744205,0.01556167,3290.3,3288.9,1.827]
[1720011744617,5.28773189,3290.2,3288.7,0.845858]
[1720011744916,1.07262292,3290.1,3288.7,0.845858]
[1720011746598,0.01556167,3289.7,3289.1,7.47]
[1720011747213,0.01556167,3289.7,3289.1,8.217]
[1720011748677,4.7768,3290.5,3289.2,2.43780601]
[1720011749014,4.7768,3290.5,3289.4,3.04005]
[1720011749219,0.01556167,3290.5,3289.5,8.8857525]
[1720011749373,0.01556167,3290.9,3289.6,3.92844525]
[1720011749570,0.01556167,3290.9,3289.7,0.61078899]
[1720011749844,0.01556167,3290.9,3289.7,0.61078785]
[1720011750010,1.22342784,3290.9,3289.8,0.45392331]
[1720011750304,0.01556167,3290.9,3289.8,0.51471267]
[1720011750465,0.01556167,3290.9,3289.9,0.55]
[1720011751409,0.01556167,3291.6,3290.7,1.827]
[1720011751671,0.17833963,3291.7,3290.8,4.47690186]
[1720011752908,0.17833963,3291.7,3290.8,0.55]
[1720011752909,0.01556167,3291.6,3290.8,0.55]
[1720011753067,0.01556167,3291.6,3290.3,7.47]
[1720011753295,0.01556167,3291.6,3290.4,0.55]
[1720011753485,5.43776407,3291.5,3289.8,10.96354331]
[1720011753686,1.08735831,3291.4,3289.9,1.15713849]
[1720011753884,0.52646407,3291.3,3289.9,0.06078416]
[1720011754099,0.01556167,3291.2,3289.9,0.06078416]
[1720011754323,0.01556167,3291.2,3289.8,0.45392331]
[1720011754806,0.01556167,3291.2,3289.9,0.06078415]
[1720011755167,0.01556167,3291.2,3290.0,1.827]
[1720011755376,4.9113,3291.5,3290.5,4.86604]
[1720011755614,0.17833963,3291.7,3290.6,0.61077078]
[1720011755912,0.17833963,3291.7,3290.8,3.03876]
[1720011756094,0.17833963,3291.7,3290.9,0.61076601]
[1720011756791,0.17833963,3291.7,3290.5,6.44698]
[1720011756994,0.01556167,3291.6,3290.5,0.77128457]
[1720011757306,0.01556167,3291.6,3290.6,0.55]
[1720011758295,0.01556167,3291.6,3290.5,0.55]
[1720011758497,0.01556167,3291.6,3290.5,3.58904]
[1720011759021,0.1939013,3291.7,3290.6,4.92664146]
[1720011759264,0.1939013,3291.7,3290.8,4.86577]
[1720011759539,0.1939013,3291.7,3290.9,0.55]
[1720011762371,0.01556167,3291.6,3290.5,7.47]
[1720011762649,0.01556167,3291.6,3290.6,0.55]
[1720011764036,0.01556167,3291.6,3290.7,1.827]
[1720011764251,0.01556167,3291.6,3290.8,0.55]
[1720011765149,0.01556167,3291.6,3290.5,10.07275878]
[1720011765534,0.01556167,3291.6,3290.6,2.43776811]
[1720011765719,0.01556167,3291.6,3290.7,1.37225069]
[1720011765920,0.01556167,3291.6,3290.8,0.61076809]
[1720011766321,0.1939013,3291.7,3290.8,0.61076809]
[1720011766554,0.17833963,3291.7,3290.8,8.88453809]
[1720011766733,0.17833963,3291.7,3290.9,1.02567888]
[1720011766935,0.17833963,3291.7,3291.0,0.61076442]
[1720011769657,0.17833963,3291.7,3291.0,0.55]
[1720011770508,0.01556167,3291.6,3290.3,6.408]
[1720011770713,0.01556167,3291.6,3290.6,0.82457588]
[1720011771538,0.01556167,3291.6,3290.3,3.408]
[1720011771539,0.01556167,3291.6,3290.1,0.29584837]
[1720011771658,0.01556167,3291.6,3289.8,3.408]
[1720011771659,4.6868,3291.5,3289.8,3.408]
[1720011771835,3.01556167,3291.4,3289.8,3.408]
[1720011772349,0.52654205,3291.3,3289.5,3.03995]
[1720011772568,0.01556167,3291.2,3289.6,2.877995]
[1720011773990,5.25778881,3291.1,3289.6,1.050995]
[1720011774148,0.54215048,3291.0,3289.4,9.297]
[1720011774556,0.52661287,3290.9,3289.3,1.827]
[1720011774661,0.01556167,3290.8,3289.3,1.827]
[1720011775184,0.01556167,3290.8,3289.4,8.88584999]
[1720011775339,0.01556167,3290.8,3289.6,1.827]
[1720011775540,0.01556167,3290.8,3289.7,2.43778408]
[1720011775800,0.01556167,3290.8,3289.8,0.06078408]
[1720011775992,0.01556167,3290.8,3289.9,0.55]
[1720011776285,0.01556167,3290.8,3289.7,2.377]
[1720011776490,0.01556167,3290.8,3289.8,0.2377]
[1720011776637,0.01556167,3290.8,3289.9,0.55]
[1720011778362,4.7312,3291.1,3289.9,5.84578444]
[1720011778598,4.7312,3291.1,3290.1,1.827]
[1720011778810,4.7312,3291.1,3290.2,1.0974216]
[1720011778997,4.7312,3291.1,3290.3,0.06077662]
[1720011779149,4.7312,3291.1,3290.4,0.55]
[1720011779583,4.7312,3291.1,3290.4,0.61077635]
[1720011779879,4.91093963,3291.7,3290.5,4.86599]
[1720011780090,0.01556167,3291.6,3290.6,3.26547664]
[1720011781880,0.01556167,3291.6,3290.7,4.92660999]
[1720011782189,4.91093963,3291.7,3290.9,3.408]
[1720011782190,0.17833963,3291.7,3290.9,3.408]
[1720011782487,0.17833963,3291.7,3291.1,4.86548]
[1720011782696,0.17833963,3291.7,3291.2,0.61075909]
[1720011782851,0.17833963,3291.7,3291.3,0.06075909]
[1720011783049,0.17833963,3291.7,3291.2,0.55]
[1720011783848,0.17833963,3291.7,3291.3,0.06076167]
[1720011784000,0.17833963,3291.7,3291.4,0.55]
[1720011784306,0.17833963,3291.7,3291.6,1.827]
[1720011784627,0.17833963,3291.7,3291.6,6.30341046]
[1720011784794,0.17833963,3291.7,3291.6,3.26538046]
[1720011784976,0.17833963,3291.7,3291.6,3.32613142]
[1720011785476,0.17833963,3291.7,3291.6,1.43838046]
[1720011785808,0.17833963,3291.7,3291.0,0.88844459]
[1720011786559,0.17833963,3291.7,3291.0,2.71544459]
[1720011786900,0.17833963,3291.7,3291.0,0.88844459]
[1720011787210,4.88353963,3291.7,3290.6,3.38847664]
[1720011787355,0.01556167,3291.6,3290.1,7.47]
[1720011787576,0.52646927,3291.5,3290.2,1.827]
[1720011787785,0.01556167,3291.4,3290.2,1.827]
[1720011787980,0.01556167,3291.4,3290.2,2.0097]
[1720011788507,0.01556167,3291.4,3290.2,0.1827]
[1720011788700,0.52651075,3291.3,3289.8,1.827]
[1720011788864,0.01556167,3291.2,3289.8,1.827]
[1720011789073,0.01556167,3291.2,3289.8,4.86668]
[1720011789277,0.01556167,3291.2,3289.9,0.85142146]
[1720011789533,0.01556167,3291.2,3289.9,3.85142146]
[1720011789904,0.01556167,3291.2,3290.0,1.827]
[1720011790091,0.01556167,3291.4,3290.1,4.92717674]
[1720011790289,4.88353963,3291.7,3290.5,1.827]
[1720011790489,0.01556167,3291.5,3290.6,0.06076931]
[1720011791169,0.01556167,3291.5,3290.7,0.55]
[1720011791395,0.01556167,3291.5,3290.6,0.55]
[1720011791570,0.01556167,3291.5,3290.3,1.827]
[1720011791768,0.52648463,3291.4,3290.2,1.09665967]
[1720011791988,0.54207476,3291.3,3290.1,1.827]
[1720011792201,0.01556167,3291.2,3290.2,0.61077893]
[1720011792441,0.01556167,3291.4,3290.3,4.92700682]
[1720011792584,0.01556167,3291.4,3290.4,0.55]
[1720011792781,0.01556167,3291.6,3290.5,0.060773]
[1720011793020,0.01556167,3291.6,3290.6,1.0976913]
[1720011793186,0.01556167,3291.6,3290.7,0.06076944]
[1720011793390,0.01556167,3291.6,3290.8,0.55]
[1720011794226,0.01556167,3291.6,3290.3,1.827]
[1720011794383,0.5054718,3291.6,3290.4,1.036628]
[1720011794806,0.52648285,3291.5,3290.1,3.408]
[1720011795019,5.38634452,3291.4,3290.0,7.47]
[1720011795224,0.52648285,3291.3,3290.0,7.47]
[1720011795432,0.55419612,3291.2,3290.0,8.3997]
[1720011795730,0.52653588,3291.1,3290.0,8.3997]
[1720011795914,0.01556167,3291.0,3290.0,8.3997]
[1720011796097,0.01556167,3291.0,3290.0,0.9297]
[1720011796285,0.01556167,3291.0,3289.5,7.47]